[Event "Asian Amateur Rapid Women 2024"]
[Site "Al Ain"]
[Date "2024.12.15"]
[Round "6.6"]
[White "Prakash, Sadhana"]
[Black "Charomova, Evguenia"]
[Result "1-0"]
[ECO "D00"]
[WhiteElo "1408"]
[BlackElo "1870"]
[Annotator "NA RC"]
[PlyCount "122"]
[EventDate "2024.12.15"]
[EventType "swiss"]
[EventCountry "UAE"]
[SourceTitle "playchess.com"]
[Source "ChessBase"]
[SourceQuality "1"]
[TimeControl "900+10"]

1. d4 {[%emt 0:00:03]} d5 {[%emt 0:00:01]} 2. Bf4 {[%emt 0:00:01]} e6 {[%emt 0:00:05]} 3. e3 {[%emt 0:00:02]} c5 {[%emt 0:00:09]} 4. c3 {[%emt 0:00:04]} c4 {[%emt 0:00:08]} 5. Nd2 {[%emt 0:00:02]} Nf6 {[%emt 0:01:13]} 6. Ngf3 {[%emt 0:00:06]} Nh5 {[%emt 0:01:35]} 7. Bg3 {[%emt 0:00:02]} Nxg3 {[%emt 0:00:02]} 8. hxg3 {[%emt 0:00:03]} Nc6 {[%emt 0:00:54]} 9. Qc2 {[%emt 0:00:10]} h6 {[%emt 0:00:32]} 10. e4 {[%emt 0:00:14]} b5 {[%emt 0:00:21]} 11. exd5 {[%emt 0:00:10]} exd5 {[%emt 0:00:02]} 12. a3 {[%emt 0:00:27]} g6 {[%emt 0:00:26]} 13. Be2 {[%emt 0:00:13]} Bf5 {[%emt 0:00:03]} 14. Qc1 {[%emt 0:00:13]} Qe7 {[%emt 0:00:17]} 15. Qd1 {[%emt 0:00:36]} Bd3 {[%emt 0:00:12]} 16. Ng1 {[%emt 0:00:42]} Bg7 {[%emt 0:00:17]} 17. Ndf3 {[%emt 0:00:17]} O-O {[%emt 0:00:13]} 18. Qd2 {[%emt 0:00:25]} Rfe8 {[%emt 0:00:15]} 19. Kf1 {[%emt 0:00:37]} Be4 {[%emt 0:01:47]} 20. Ne1 {[%emt 0:01:15]} a5 {[%emt 0:00:11]} 21. Ngf3 {[%emt 0:00:05]} b4 {[%emt 0:00:11]} 22. axb4 {[%emt 0:00:03]} axb4 {[%emt 0:00:14]} 23. Rxa8 {[%emt 0:00:02]} Rxa8 {[%emt 0:00:02]} 24. cxb4 {[%emt 0:00:13]} Nxb4 {[%emt 0:00:08]} 25. Ne5 {[%emt 0:00:18]} f6 {[%emt 0:01:43]} 26. Ng4 {[%emt 0:00:11]} h5 {[%emt 0:00:49]} 27. Ne3 {[%emt 0:00:08]} Ra1 {[%emt 0:01:43]} 28. Kg1 {[%emt 0:00:34]} Bd3 {[%emt 0:01:55]} 29. Kh2 {[%emt 0:00:38]} Bxe2 {[%emt 0:00:02]} 30. Qxe2 {[%emt 0:00:01]} f5 {[%emt 0:00:03]} 31. Nf3 {[%emt 0:00:28]} Ra2 {[%emt 0:00:40]} 32. Qd2 {[%emt 0:00:28]} Qd6 {[%emt 0:01:14]} 33. Re1 {[%emt 0:00:59]} f4 {[%emt 0:00:03]} 34. gxf4 {[%emt 0:00:07]} Qxf4+ {[%emt 0:00:06]} 35. Kg1 {[%emt 0:00:02]} Nd3 {[%emt 0:00:08]} 36. Rb1 {[%emt 0:00:17]} Bxd4 {[%emt 0:00:05]} 37. Nxd4 {[%emt 0:00:03]} Qxd4 {[%emt 0:00:03]} 38. Nc2 {[%emt 0:00:11]} Qf6 {[%emt 0:00:27]} 39. Ne3 {[%emt 0:00:10]} Qe5 {[%emt 0:00:56]} 40. Nd1 {[%emt 0:00:28]} d4 {[%emt 0:00:35]} 41. Kf1 {[%emt 0:01:48]} Qf5 {[%emt 0:00:30]} 42. Qc2 {[%emt 0:00:25]} c3 {[%emt 0:00:30]} 43. Qb3+ {[%emt 0:00:11]} Qf7 {[%emt 0:00:36]} 44. Qxf7+ {[%emt 0:00:13]} Kxf7 {[%emt 0:00:10]} 45. bxc3 {[%emt 0:00:08]} dxc3 {[%emt 0:00:03]} 46. Rb7+ {[%emt 0:00:25]} Kf6 {[%emt 0:00:13]} 47. Rb6+ {[%emt 0:00:07]} Kf5 {[%emt 0:00:13]} 48. Rb5+ {[%emt 0:01:31]} Kf4 {[%emt 0:00:17]} 49. Nxc3 {[%emt 0:00:42]} Rxf2+ {[%emt 0:00:03]} 50. Kg1 {[%emt 0:00:03]} g5 {[%emt 0:00:13]} 51. Nd5+ {[%emt 0:00:17]} Kg3 {[%emt 0:00:16]} 52. Ne3 {[%emt 0:00:33]} Re2 {[%emt 0:00:22]} 53. Nf1+ {[%emt 0:01:04]} Kf4 {[%emt 0:00:18]} 54. g3+ {[%emt 0:00:08]} Kg4 {[%emt 0:00:10]} 55. Rd5 {[%emt 0:00:35]} Ne5 {[%emt 0:00:20]} 56. Rd4+ {[%emt 0:00:11]} Kh3 {[%emt 0:00:06]} 57. Nd2 {[%emt 0:04:02]} Kxg3 {[%emt 0:00:08]} 58. Ne4+ {[%emt 0:00:09]} Kf3 {[%emt 0:00:32]} 59. Nxg5+ {[%emt 0:01:20]} Ke3 60. Re4+ {[%emt 0:00:10]} Kd3 {[%emt 0:00:20]} 61. Rxe2 {[%emt 0:00:00]} Kxe2 {[%emt 0:00:00]} 1-0

[Event "Asian Amateur Rapid Women 2024"]
[Site "Al Ain"]
[Date "2024.12.15"]
[Round "6.7"]
[White "Bhandari, Pooja"]
[Black "Zhumabek, Nursaya"]
[Result "0-1"]
[ECO "B23"]
[WhiteElo "1684"]
[BlackElo "1448"]
[Annotator "NA RC"]
[PlyCount "120"]
[EventDate "2024.12.15"]
[EventType "swiss"]
[EventCountry "UAE"]
[SourceTitle "playchess.com"]
[Source "ChessBase"]
[SourceQuality "1"]
[TimeControl "900+10"]

1. e4 {[%emt 0:00:03]} c5 {[%emt 0:00:01]} 2. f4 {[%emt 0:00:03]} d6 {[%emt 0:00:01]} 3. Nf3 {[%emt 0:00:04]} Nf6 {[%emt 0:00:02]} 4. Nc3 {[%emt 0:00:07]} Nc6 {[%emt 0:00:07]} 5. g3 {[%emt 0:00:13]} Bg4 {[%emt 0:00:03]} 6. Bg2 {[%emt 0:00:32]} g6 {[%emt 0:00:23]} 7. h3 {[%emt 0:00:06]} Bxf3 {[%emt 0:00:04]} 8. Bxf3 {[%emt 0:00:39]} Nd4 {[%emt 0:00:03]} 9. Bg2 {[%emt 0:00:07]} Nh5 {[%emt 0:00:14]} 10. Kf2 {[%emt 0:03:23]} c4 {[%emt 0:00:48]} 11. Nd5 {[%emt 0:01:19]} e6 {[%emt 0:00:14]} 12. c3 {[%emt 0:00:24]} Nc6 {[%emt 0:00:17]} 13. Ne3 {[%emt 0:00:22]} e5 {[%emt 0:00:33]} 14. f5 {[%emt 0:00:52]} Qg5 {[%emt 0:00:41]} 15. Qg4 {[%emt 0:00:17]} Qxg4 {[%emt 0:00:27]} 16. hxg4 {[%emt 0:00:16]} Nf6 {[%emt 0:00:09]} 17. g5 {[%emt 0:00:17]} Nd7 {[%emt 0:00:12]} 18. Nxc4 {[%emt 0:00:19]} O-O-O {[%emt 0:00:49]} 19. f6 {[%emt 0:00:13]} Nc5 {[%emt 0:00:28]} 20. Ke2 {[%emt 0:01:05]} Ne6 {[%emt 0:00:29]} 21. d3 {[%emt 0:00:13]} Nc7 {[%emt 0:00:14]} 22. a4 {[%emt 0:00:12]} d5 {[%emt 0:00:04]} 23. Ne3 {[%emt 0:01:35]} d4 {[%emt 0:00:18]} 24. Nc4 {[%emt 0:00:36]} Ne6 {[%emt 0:01:12]} 25. Bd2 {[%emt 0:01:22]} Nc5 {[%emt 0:00:42]} 26. Rad1 {[%emt 0:00:16]} dxc3 {[%emt 0:00:38]} 27. Bxc3 {[%emt 0:00:02]} Nd4+ {[%emt 0:00:18]} 28. Ke3 {[%emt 0:00:47]} Bd6 {[%emt 0:00:41]} 29. Nxd6+ {[%emt 0:00:11]} Rxd6 {[%emt 0:00:03]} 30. a5 {[%emt 0:00:36]} Ncb3 {[%emt 0:00:28]} 31. Rdf1 {[%emt 0:01:12]} Nc2+ {[%emt 0:00:28]} 32. Ke2 {[%emt 0:00:28]} Ncd4+ {[%emt 0:00:10]} 33. Bxd4 {[%emt 0:00:03]} Rxd4 {[%emt 0:00:18]} 34. Rf3 {[%emt 0:01:05]} Rb4 {[%emt 0:00:05]} 35. Ke3 {[%emt 0:00:18]} Nxa5 {[%emt 0:00:27]} 36. Rc1+ {[%emt 0:00:09]} Kb8 {[%emt 0:00:06]} 37. Rf2 {[%emt 0:00:11]} Rd8 {[%emt 0:00:45]} 38. Rfc2 {[%emt 0:00:21]} Nc6 {[%emt 0:00:46]} 39. Rh1 {[%emt 0:00:07]} Rh8 {[%emt 0:00:31]} 40. Bh3 {[%emt 0:00:24]} h5 {[%emt 0:00:21]} 41. Rhc1 {[%emt 0:00:51]} Rd8 {[%emt 0:00:09]} 42. g4 {[%emt 0:00:14]} hxg4 {[%emt 0:00:05]} 43. Bxg4 {[%emt 0:00:02]} Rb3 {[%emt 0:00:15]} 44. Be2 {[%emt 0:00:19]} Nd4 {[%emt 0:00:16]} 45. Rd2 {[%emt 0:00:11]} Rb6 {[%emt 0:00:13]} 46. Bg4 {[%emt 0:00:07]} Nb3 {[%emt 0:00:07]} 47. Rdc2 {[%emt 0:00:11]} Nxc1 {[%emt 0:00:03]} 48. Rxc1 {[%emt 0:00:02]} Rxb2 {[%emt 0:00:04]} 49. Rh1 {[%emt 0:00:08]} a5 {[%emt 0:00:20]} 50. Rh7 {[%emt 0:00:02]} Rf8 {[%emt 0:00:02]} 51. d4 {[%emt 0:00:18]} Rb3+ {[%emt 0:00:02]} 52. Kd2 {[%emt 0:00:07]} exd4 {[%emt 0:00:03]} 53. Rg7 {[%emt 0:00:13]} Rg3 {[%emt 0:00:16]} 54. Bd7 {[%emt 0:00:19]} Rxg5 {[%emt 0:00:04]} 55. Kd3 {[%emt 0:00:05]} b5 {[%emt 0:00:20]} 56. Kxd4 {[%emt 0:00:04]} a4 {[%emt 0:00:06]} 57. e5 {[%emt 0:00:01]} a3 {[%emt 0:00:30]} 58. Bxb5 {[%emt 0:00:03]} a2 {[%emt 0:00:03]} 59. e6 {[%emt 0:00:43]} a1=Q+ {[%emt 0:07:22]} 60. Kc4 {[%emt 0:00:08]} Qxf6 {[%emt 0:00:00]} 0-1

[Event "Asian Amateur Rapid Women 2024"]
[Site "Al Ain"]
[Date "2024.12.15"]
[Round "6.8"]
[White "Latifah, Darmaki"]
[Black "Almaamari, Zainab Darwish"]
[Result "0-1"]
[ECO "B42"]
[WhiteElo "1540"]
[BlackElo "1751"]
[Annotator "NA RC"]
[PlyCount "38"]
[EventDate "2024.12.15"]
[EventType "swiss"]
[EventCountry "UAE"]
[SourceTitle "playchess.com"]
[Source "ChessBase"]
[SourceQuality "1"]
[TimeControl "900+10"]

1. e4 {[%emt 0:00:02]} c5 {[%emt 0:00:01]} 2. Nf3 {[%emt 0:00:05]} e6 {[%emt 0:15:29]} 3. d4 {[%emt 0:00:16]} cxd4 {[%emt 0:00:00]} 4. Nxd4 {[%emt 0:00:02]} a6 {[%emt 0:00:00]} 5. Bd3 {[%emt 0:00:42]} d6 {[%emt 0:00:00]} 6. Nc3 {[%emt 0:00:35]} b5 {[%emt 0:00:00]} 7. a3 {[%emt 0:00:31]} Bb7 {[%emt 0:00:00]} 8. O-O {[%emt 0:00:31]} Nf6 {[%emt 0:00:00]} 9. Be3 {[%emt 0:01:28]} Be7 {[%emt 0:00:00]} 10. f4 {[%emt 0:00:13]} Nbd7 {[%emt 0:00:00]} 11. Qf3 {[%emt 0:02:56]} Qc7 {[%emt 0:00:00]} 12. Qg3 {[%emt 0:01:35]} h5 {[%emt 0:00:00]} 13. Rae1 {[%emt 0:03:01]} h4 {[%emt 0:00:00]} 14. Qf3 {[%emt 0:02:36]} Rc8 {[%emt 0:00:00]} 15. Bf2 {[%emt 0:00:24]} Qb8 {[%emt 0:00:00]} 16. Qe2 {[%emt 0:01:48]} Qa8 {[%emt 0:00:00]} 17. Nf5 {[%emt 0:00:20]} exf5 {[%emt 0:00:00]} 18. exf5 {[%emt 0:00:02]} Ng8 {[%emt 0:00:00]} 19. f6 {[%emt 0:00:00]} Ndxf6 {[%emt 0:00:00]} 0-1

[Event "Asian Amateur Rapid Women 2024"]
[Site "Al Ain"]
[Date "2024.12.15"]
[Round "6.9"]
[White "Olandag, Meghan Gabrielle"]
[Black "Mera Abdulaziz Aidarous"]
[Result "1/2-1/2"]
[ECO "C45"]
[WhiteElo "1479"]
[BlackElo "1584"]
[Annotator "NA RC"]
[PlyCount "101"]
[EventDate "2024.12.15"]
[EventType "swiss"]
[EventCountry "UAE"]
[SourceTitle "playchess.com"]
[Source "ChessBase"]
[SourceQuality "1"]
[TimeControl "900+10"]

1. e4 {[%emt 0:00:01]} e5 {[%emt 0:00:14]} 2. Nf3 {[%emt 0:00:02]} Nc6 {[%emt 0:15:16]} 3. d4 {[%emt 0:00:03]} exd4 {[%emt 0:00:00]} 4. Nxd4 {[%emt 0:00:02]} Bc5 {[%emt 0:00:00]} 5. Nxc6 {[%emt 0:00:08]} dxc6 {[%emt 0:00:00]} 6. Qxd8+ {[%emt 0:00:05]} Kxd8 {[%emt 0:00:00]} 7. Bc4 {[%emt 0:00:05]} Ke7 {[%emt 0:00:00]} 8. O-O {[%emt 0:00:13]} Be6 {[%emt 0:00:00]} 9. Bxe6 {[%emt 0:00:28]} Kxe6 {[%emt 0:00:00]} 10. Nc3 {[%emt 0:00:09]} Nf6 {[%emt 0:00:00]} 11. Re1 {[%emt 0:00:49]} Rhe8 {[%emt 0:00:00]} 12. Be3 {[%emt 0:00:41]} Bd6 {[%emt 0:00:00]} 13. Rad1 {[%emt 0:01:21]} b5 {[%emt 0:00:00]} 14. f4 {[%emt 0:00:24]} b4 {[%emt 0:00:00]} 15. e5 {[%emt 0:01:21]} bxc3 {[%emt 0:00:00]} 16. exd6 {[%emt 0:00:21]} cxd6 {[%emt 0:00:00]} 17. Bd4+ {[%emt 0:00:58]} Kf5 {[%emt 0:00:00]} 18. Bxc3 {[%emt 0:00:23]} d5 {[%emt 0:00:00]} 19. Be5 {[%emt 0:00:28]} g6 {[%emt 0:00:00]} 20. Bxf6 {[%emt 0:00:45]} Kxf6 {[%emt 0:00:00]} 21. Kf2 {[%emt 0:00:04]} h5 {[%emt 0:00:00]} 22. Rd3 {[%emt 0:00:29]} Kf5 {[%emt 0:00:00]} 23. g3 {[%emt 0:00:09]} a5 {[%emt 0:00:00]} 24. Rxe8 {[%emt 0:00:47]} Rxe8 {[%emt 0:00:00]} 25. Rc3 {[%emt 0:00:04]} Rc8 {[%emt 0:00:00]} 26. Rc5 {[%emt 0:00:05]} a4 {[%emt 0:00:00]} 27. c4 {[%emt 0:00:14]} Rb8 {[%emt 0:00:00]} 28. b3 {[%emt 0:00:01]} axb3 {[%emt 0:00:00]} 29. axb3 {[%emt 0:00:03]} Rxb3 {[%emt 0:00:00]} 30. cxd5 {[%emt 0:00:20]} cxd5 {[%emt 0:00:00]} 31. Rxd5+ {[%emt 0:00:05]} Kg4 {[%emt 0:00:00]} 32. Rd2 {[%emt 0:02:31]} h4 {[%emt 0:00:00]} 33. gxh4 {[%emt 0:00:58]} Rf3+ {[%emt 0:00:25]} 34. Kg2 {[%emt 0:00:33]} Rxf4 {[%emt 0:00:05]} 35. Rd8 {[%emt 0:01:00]} Kxh4 {[%emt 0:00:09]} 36. Rh8+ {[%emt 0:00:21]} Kg5 {[%emt 0:00:23]} 37. Kg3 {[%emt 0:00:16]} Rg4+ {[%emt 0:00:42]} 38. Kh3 {[%emt 0:00:35]} f5 {[%emt 0:00:32]} 39. Rg8 {[%emt 0:00:43]} f4 {[%emt 0:00:27]} 40. Rxg6+ {[%emt 0:00:06]} Kxg6 {[%emt 0:00:10]} 41. Kxg4 {[%emt 0:00:01]} f3 {[%emt 0:00:07]} 42. Kxf3 {[%emt 0:00:03]} Kh5 {[%emt 0:00:04]} 43. Kg3 {[%emt 0:00:04]} Kg5 {[%emt 0:00:49]} 44. h4+ {[%emt 0:00:03]} Kh6 {[%emt 0:00:22]} 45. Kg4 {[%emt 0:00:02]} Kg6 {[%emt 0:00:04]} 46. h5+ {[%emt 0:00:04]} Kh7 {[%emt 0:00:11]} 47. Kg5 {[%emt 0:00:01]} Kg7 {[%emt 0:00:01]} 48. h6+ {[%emt 0:00:02]} Kh8 {[%emt 0:00:13]} 49. Kg6 {[%emt 0:00:02]} Kg8 {[%emt 0:00:05]} 50. h7+ {[%emt 0:00:02]} Kh8 {[%emt 0:00:02]} 51. Kh6 {[%emt 0:00:01]} 1/2-1/2

[Event "Asian Amateur Rapid Women 2024"]
[Site "Al Ain"]
[Date "2024.12.15"]
[Round "6.10"]
[White "Marksim Karki Abirami, Sriiyukthaa"]
[Black "Saeidpour, Mona"]
[Result "1/2-1/2"]
[ECO "D11"]
[WhiteElo "1466"]
[BlackElo "1905"]
[Annotator "NA RC"]
[PlyCount "105"]
[EventDate "2024.12.15"]
[EventType "swiss"]
[EventCountry "UAE"]
[SourceTitle "playchess.com"]
[Source "ChessBase"]
[SourceQuality "1"]
[TimeControl "900+10"]

1. d4 {[%emt 0:00:09]} d5 {[%emt 0:00:01]} 2. c4 {[%emt 0:00:04]} c6 {[%emt 0:00:02]} 3. Nc3 {[%emt 0:00:06]} Nf6 {[%emt 0:00:03]} 4. g3 {[%emt 0:00:05]} Bg4 {[%emt 0:00:44]} 5. Bg2 {[%emt 0:00:45]} e6 {[%emt 0:00:11]} 6. Nf3 {[%emt 0:00:26]} Nbd7 {[%emt 0:00:17]} 7. O-O {[%emt 0:00:05]} Be7 {[%emt 0:00:06]} 8. Re1 {[%emt 0:00:06]} O-O {[%emt 0:00:05]} 9. h3 {[%emt 0:00:07]} Bh5 {[%emt 0:00:05]} 10. e4 {[%emt 0:00:15]} dxc4 {[%emt 0:00:34]} 11. a4 {[%emt 0:00:50]} c5 {[%emt 0:02:05]} 12. dxc5 {[%emt 0:00:32]} Nxc5 {[%emt 0:00:03]} 13. Qe2 {[%emt 0:00:16]} Bxf3 {[%emt 0:02:01]} 14. Bxf3 {[%emt 0:00:10]} e5 {[%emt 0:01:40]} 15. Qxc4 {[%emt 0:00:16]} Qd3 {[%emt 0:00:36]} 16. Qxd3 {[%emt 0:00:13]} Nxd3 {[%emt 0:00:02]} 17. Rd1 {[%emt 0:00:06]} Nxc1 {[%emt 0:00:05]} 18. Raxc1 {[%emt 0:00:07]} Rfd8 {[%emt 0:00:06]} 19. Nd5 {[%emt 0:00:09]} Nxd5 {[%emt 0:00:18]} 20. exd5 {[%emt 0:00:04]} Bd6 {[%emt 0:00:11]} 21. b3 {[%emt 0:00:29]} Rac8 {[%emt 0:00:17]} 22. Kg2 {[%emt 0:00:10]} Kf8 {[%emt 0:00:28]} 23. b4 {[%emt 0:00:16]} Bxb4 {[%emt 0:01:08]} 24. Rxc8 {[%emt 0:00:02]} Rxc8 {[%emt 0:00:01]} 25. d6 {[%emt 0:00:07]} Rd8 {[%emt 0:00:46]} 26. d7 {[%emt 0:00:08]} Ke7 {[%emt 0:00:17]} 27. Rd5 {[%emt 0:00:13]} Bd6 {[%emt 0:00:50]} 28. Rb5 {[%emt 0:00:22]} Rxd7 {[%emt 0:00:40]} 29. Rxb7 {[%emt 0:00:04]} Bc5 {[%emt 0:01:08]} 30. Rxd7+ {[%emt 0:00:43]} Kxd7 {[%emt 0:00:02]} 31. Bd5 {[%emt 0:00:08]} f6 {[%emt 0:00:06]} 32. f4 {[%emt 0:00:07]} Kd6 {[%emt 0:00:06]} 33. Be4 {[%emt 0:00:04]} g6 {[%emt 0:01:07]} 34. Kf3 {[%emt 0:00:17]} f5 {[%emt 0:00:13]} 35. Bb7 {[%emt 0:00:15]} e4+ {[%emt 0:00:14]} 36. Ke2 {[%emt 0:00:07]} Bd4 {[%emt 0:00:47]} 37. a5 {[%emt 0:00:20]} Kc5 {[%emt 0:00:44]} 38. a6 {[%emt 0:00:11]} Kd6 {[%emt 0:01:04]} 39. Bc8 {[%emt 0:00:22]} h6 {[%emt 0:00:17]} 40. h4 {[%emt 0:00:11]} Bg1 {[%emt 0:00:34]} 41. g4 {[%emt 0:00:38]} fxg4 {[%emt 0:01:09]} 42. Bxg4 {[%emt 0:00:04]} Kc5 {[%emt 0:00:12]} 43. h5 {[%emt 0:00:23]} gxh5 {[%emt 0:00:02]} 44. Bxh5 {[%emt 0:00:02]} Kd5 {[%emt 0:00:11]} 45. Bg6 {[%emt 0:00:10]} Kd4 {[%emt 0:00:09]} 46. f5 {[%emt 0:00:26]} Ke5 {[%emt 0:00:02]} 47. f6 {[%emt 0:00:08]} Kxf6 {[%emt 0:00:06]} 48. Bxe4 {[%emt 0:00:02]} h5 {[%emt 0:00:17]} 49. Kf1 {[%emt 0:00:08]} Bc5 {[%emt 0:00:05]} 50. Kg2 {[%emt 0:00:04]} Kg5 {[%emt 0:00:05]} 51. Kg3 {[%emt 0:00:09]} Bd6+ {[%emt 0:00:06]} 52. Kh3 {[%emt 0:00:01]} h4 {[%emt 0:00:24]} 53. Bb7 {[%emt 0:00:02]} 1/2-1/2

[Event "Asian Amateur Rapid Women 2024"]
[Site "Al Ain"]
[Date "2024.12.15"]
[Round "6.11"]
[White "Lulwa Khalifa Alhammadi"]
[Black "Rowdah Ghalib Alafeefi"]
[Result "1-0"]
[ECO "C54"]
[WhiteElo "1621"]
[BlackElo "1450"]
[Annotator "NA RC"]
[PlyCount "41"]
[EventDate "2024.12.15"]
[EventType "swiss"]
[EventCountry "UAE"]
[SourceTitle "playchess.com"]
[Source "ChessBase"]
[SourceQuality "1"]
[TimeControl "900+10"]

1. e4 {[%emt 0:00:03]} e5 {[%emt 0:00:01]} 2. Nf3 {[%emt 0:00:02]} Nc6 {[%emt 0:00:00]} 3. Bc4 {[%emt 0:00:02]} Bc5 {[%emt 0:00:01]} 4. c3 {[%emt 0:00:02]} Nf6 {[%emt 0:00:02]} 5. d3 {[%emt 0:00:01]} a6 {[%emt 0:00:01]} 6. O-O {[%emt 0:00:14]} h6 {[%emt 0:00:06]} 7. Nbd2 {[%emt 0:00:06]} O-O {[%emt 0:00:03]} 8. h3 {[%emt 0:00:11]} d6 {[%emt 0:00:06]} 9. Bb3 {[%emt 0:00:02]} Re8 {[%emt 0:00:03]} 10. Re1 {[%emt 0:00:05]} Be6 {[%emt 0:00:01]} 11. Bc2 {[%emt 0:00:01]} Ba7 {[%emt 0:00:07]} 12. Nf1 {[%emt 0:00:03]} Qd7 {[%emt 0:00:18]} 13. Ng3 {[%emt 0:02:07]} b5 {[%emt 0:02:56]} 14. d4 {[%emt 0:01:19]} exd4 {[%emt 0:00:02]} 15. cxd4 {[%emt 0:00:04]} d5 {[%emt 0:01:06]} 16. e5 {[%emt 0:03:21]} Nh7 {[%emt 0:00:41]} 17. Qd3 {[%emt 0:00:29]} Nf8 {[%emt 0:00:23]} 18. Nh5 {[%emt 0:02:52]} Ne7 {[%emt 0:00:20]} 19. Bxh6 {[%emt 0:00:25]} Bxh3 {[%emt 0:00:31]} 20. Bxg7 {[%emt 0:01:10]} Qg4 {[%emt 0:00:29]} 21. Nf6+ {[%emt 0:00:07]} 1-0

[Event "Asian Amateur Rapid Women 2024"]
[Site "Al Ain"]
[Date "2024.12.15"]
[Round "6.12"]
[White "Al Khoori, Noora Mahmood Abdull"]
[Black "Hotami, Mutriba"]
[Result "0-1"]
[ECO "B01"]
[WhiteElo "1513"]
[BlackElo "1882"]
[Annotator "NA RC"]
[PlyCount "74"]
[EventDate "2024.12.15"]
[EventType "swiss"]
[EventCountry "UAE"]
[SourceTitle "playchess.com"]
[Source "ChessBase"]
[SourceQuality "1"]
[TimeControl "900+10"]

1. e4 {[%emt 0:00:03]} d5 {[%emt 0:00:01]} 2. exd5 {[%emt 0:00:03]} Qxd5 {[%emt 0:00:01]} 3. Nc3 {[%emt 0:00:02]} Qa5 {[%emt 0:00:01]} 4. d4 {[%emt 0:00:05]} c6 {[%emt 0:00:01]} 5. Bf4 {[%emt 0:00:05]} Nf6 {[%emt 0:00:04]} 6. Nf3 {[%emt 0:00:06]} Bg4 {[%emt 0:00:22]} 7. Bc4 {[%emt 0:00:28]} e6 {[%emt 0:00:08]} 8. O-O {[%emt 0:00:13]} Nbd7 {[%emt 0:00:18]} 9. Re1 {[%emt 0:00:23]} Bb4 {[%emt 0:00:29]} 10. Qd3 {[%emt 0:00:52]} Bf5 {[%emt 0:01:02]} 11. Qe3 {[%emt 0:00:19]} O-O {[%emt 0:00:45]} 12. Nh4 {[%emt 0:00:36]} Bxc2 {[%emt 0:01:02]} 13. Rac1 {[%emt 0:02:41]} Bg6 {[%emt 0:03:01]} 14. Nxg6 {[%emt 0:00:47]} hxg6 {[%emt 0:00:01]} 15. a3 {[%emt 0:00:47]} Bxc3 {[%emt 0:00:20]} 16. Rxc3 {[%emt 0:00:01]} Nb6 {[%emt 0:02:19]} 17. Bd6 {[%emt 0:01:26]} Nxc4 {[%emt 0:04:25]} 18. Rxc4 {[%emt 0:00:10]} Qd5 {[%emt 0:00:01]} 19. Bxf8 {[%emt 0:00:25]} Qxc4 {[%emt 0:00:01]} 20. Bd6 {[%emt 0:02:21]} Qd5 {[%emt 0:00:12]} 21. Be5 {[%emt 0:00:35]} Rd8 {[%emt 0:00:12]} 22. Qf4 {[%emt 0:00:17]} Nh5 {[%emt 0:01:43]} 23. Qg4 {[%emt 0:01:52]} Nf6 {[%emt 0:00:44]} 24. Qf4 {[%emt 0:00:33]} Nd7 {[%emt 0:00:13]} 25. Bd6 {[%emt 0:01:24]} Nf6 {[%emt 0:00:33]} 26. Be5 {[%emt 0:00:06]} Nh5 {[%emt 0:00:36]} 27. Qg4 {[%emt 0:00:26]} f6 {[%emt 0:00:03]} 28. Bc7 {[%emt 0:02:11]} Rc8 {[%emt 0:00:31]} 29. Bg3 {[%emt 0:00:32]} Nxg3 {[%emt 0:00:03]} 30. hxg3 {[%emt 0:00:02]} Kf7 {[%emt 0:00:04]} 31. b4 {[%emt 0:00:14]} Rd8 {[%emt 0:00:03]} 32. Rd1 {[%emt 0:00:02]} Qb3 {[%emt 0:00:12]} 33. Re1 {[%emt 0:00:22]} Qd5 {[%emt 0:00:12]} 34. Rd1 {[%emt 0:00:02]} e5 {[%emt 0:00:09]} 35. f4 {[%emt 0:00:18]} exd4 {[%emt 0:00:18]} 36. Qe2 {[%emt 0:00:09]} d3 {[%emt 0:00:27]} 37. Qe3 {[%emt 0:00:09]} Qd4 {[%emt 0:00:23]} 0-1